fUSD/lending_fUSD_20241119
["ID","MTS","AMOUNT","RATE_DAILY","PERIOD"]
[342615295,1731995448421,-500.0,9.895e-05,2]
[342615296,1731995448431,-500.0,9.895e-05,2]
[342615297,1731995448441,-500.0,9.895e-05,2]
[342615298,1731995448451,-2520.62,9.895e-05,2]
[342615299,1731995448460,-1988.85,9.895e-05,2]
[342615300,1731995448520,-500.0,9.895e-05,2]
[342615301,1731995448530,-500.0,9.895e-05,2]
[342615302,1731995448540,-500.0,9.895e-05,2]
[342615303,1731995448550,-500.0,9.895e-05,2]
[342615304,1731995448559,-500.0,9.895e-05,2]
[342615305,1731995448568,-500.0,9.895e-05,2]
[342615306,1731995448578,-500.0,9.895e-05,2]
[342615307,1731995448587,-500.0,9.895e-05,2]
[342615308,1731995448597,-500.0,9.895e-05,2]
[342615309,1731995448606,-500.0,9.895e-05,2]
[342615310,1731995448616,-500.0,9.895e-05,2]
[342615311,1731995448626,-500.0,9.895e-05,2]
[342615312,1731995448636,-500.0,9.895e-05,2]
[342615313,1731995448646,-500.0,9.895e-05,2]
[342615314,1731995448655,-500.0,9.895e-05,2]
[342615315,1731995448666,-500.0,9.895e-05,2]
[342615316,1731995448675,-500.0,9.895e-05,2]
[342615317,1731995448686,-500.0,9.895e-05,2]
[342615318,1731995448697,-500.0,9.895e-05,2]
[342615319,1731995448707,-500.0,9.895e-05,2]
[342615320,1731995448717,-500.0,9.895e-05,2]
[342615321,1731995448727,-500.0,9.895e-05,2]
[342615322,1731995448736,-500.0,9.895e-05,2]
[342615323,1731995448747,-3423.21,9.895e-05,2]
[342615324,1731995448756,-500.0,9.895e-05,2]
[342615325,1731995448766,-500.0,9.895e-05,2]
[342615326,1731995448783,-500.0,9.895e-05,2]
[342615327,1731995448792,-500.0,9.895e-05,2]
[342615328,1731995448801,-500.628189,9.896e-05,2]
[342615329,1731995448811,-500.42454176,9.896e-05,2]
[342615330,1731995448821,-501.19719098,9.896e-05,2]
[342615331,1731995448830,-500.55181077,9.896e-05,2]
[342615332,1731995448839,-500.68875643,9.896e-05,2]
[342615333,1731995448848,-500.0,9.896e-05,2]
[342615334,1731995448862,-500.38791214,9.896e-05,2]
[342615335,1731995448872,-298.19188961,9.896e-05,2]
[342615336,1731995448882,-500.0,9.896e-05,2]
[342615337,1731995448892,-501.29765563,9.896e-05,2]
[342615338,1731995448903,-500.75844972,9.896e-05,2]
[342615339,1731995448920,-500.53302833,9.896e-05,2]
[342615340,1731995448930,-425.93232177,9.896e-05,2]
[342615341,1731995448939,-500.42914367,9.896e-05,2]
[342615342,1731995448949,-500.0,9.896e-05,2]
[342615343,1731995448958,-500.0,9.896e-05,2]
[342615344,1731995448967,-500.0,9.896e-05,2]
[342615345,1731995448976,-500.0,9.896e-05,2]
[342615346,1731995448986,-743.95,9.896e-05,2]
[342615347,1731995448995,-500.0,9.896e-05,2]
[342615348,1731995449005,-674.25,9.896e-05,2]
[342615349,1731995449016,-881.82,9.896e-05,2]
[342615350,1731995449026,-500.0,9.896e-05,2]
[342615351,1731995449035,-558.11,9.896e-05,2]
[342615352,1731995449045,-875.8,9.896e-05,2]
[342615353,1731995449054,-182.55623277,9.896e-05,2]
[342615354,1731995449064,-500.0,9.896e-05,2]
[342615355,1731995449073,-1611.12,9.896e-05,2]
[342615356,1731995449083,-1194.11,9.896e-05,2]
[342615357,1731995449092,-1521.69,9.896e-05,2]
[342615358,1731995449101,-1505.76,9.896e-05,2]
[342615359,1731995449111,-943.83,9.896e-05,2]
[342615360,1731995449121,-1307.66,9.896e-05,2]
[342615361,1731995449130,-500.0,9.896e-05,2]
[342615362,1731995449139,-982.39,9.896e-05,2]
[342615363,1731995449149,-500.0,9.896e-05,2]
[342615364,1731995449158,-500.0,9.896e-05,2]
[342615365,1731995449168,-1587.39,9.896e-05,2]
[342615366,1731995449177,-500.0,9.896e-05,2]
[342615367,1731995449187,-500.0,9.896e-05,2]
[342615368,1731995449197,-1855.5,9.896e-05,2]
[342615369,1731995449207,-234.86923276,9.896e-05,2]
[342615370,1731995449217,-500.0,9.896e-05,2]
[342615371,1731995449227,-1134.18,9.896e-05,2]
[342615372,1731995449236,-592.53620626,9.896e-05,2]
[342615373,1731995449246,-500.0,9.896e-05,2]
[342615374,1731995449256,-500.0,9.896e-05,2]
[342615375,1731995449267,-500.0,9.896e-05,2]
[342615376,1731995449276,-1723.34,9.896e-05,2]
[342615377,1731995449286,-500.0,9.896e-05,2]
[342615378,1731995449295,-500.0,9.896e-05,2]
[342615379,1731995449305,-500.0,9.896e-05,2]
[342615380,1731995449315,-500.0,9.896e-05,2]
[342615381,1731995449324,-1685.74,9.896e-05,2]
[342615382,1731995449334,-500.0,9.896e-05,2]
[342615383,1731995449343,-500.0,9.896e-05,2]
[342615384,1731995449352,-500.0,9.896e-05,2]
[342615385,1731995449362,-500.0,9.896e-05,2]
[342615386,1731995449371,-590.4,9.896e-05,2]
[342615387,1731995449381,-500.0,9.896e-05,2]
[342615388,1731995449390,-500.0,9.896e-05,2]
[342615389,1731995449400,-500.0,9.896e-05,2]
[342615390,1731995449409,-500.0,9.92e-05,2]
[342615391,1731995449419,-150.0,9.925e-05,2]
[342615392,1731995449429,-153.0,9.956e-05,2]
[342615393,1731995449438,-153.0,9.956e-05,2]
[342615394,1731995449448,-153.0,9.956e-05,2]
[342615395,1731995449458,-153.0,9.956e-05,2]
[342615396,1731995449467,-153.0,9.956e-05,2]
[342615397,1731995449477,-153.0,9.956e-05,2]
[342615398,1731995449486,-153.0,9.956e-05,2]
[342615399,1731995449495,-153.0,9.956e-05,2]
[342615400,1731995449504,-153.0,9.956e-05,2]
[342615401,1731995449514,-153.0,9.956e-05,2]
[342615402,1731995449524,-153.0,9.956e-05,2]
[342615403,1731995449533,-153.0,9.956e-05,2]
[342615404,1731995449542,-153.0,9.956e-05,2]
[342615405,1731995449552,-153.0,9.956e-05,2]
[342615406,1731995449561,-153.0,9.956e-05,2]
[342615407,1731995449570,-153.0,9.956e-05,2]
[342615408,1731995449585,-153.0,9.956e-05,2]
[342615409,1731995449595,-153.0,9.956e-05,2]
[342615410,1731995449604,-153.0,9.956e-05,2]
[342615411,1731995449613,-153.0,9.956e-05,2]
[342615412,1731995449623,-153.0,9.956e-05,2]
[342615413,1731995449633,-153.0,9.956e-05,2]
[342615414,1731995449643,-153.0,9.956e-05,2]
[342615415,1731995449652,-153.0,9.956e-05,2]
[342615416,1731995449661,-153.0,9.956e-05,2]
[342615417,1731995449671,-153.0,9.956e-05,2]
[342615418,1731995449680,-153.0,9.956e-05,2]
[342615419,1731995449690,-153.0,9.956e-05,2]
[342615420,1731995449699,-153.0,9.956e-05,2]
[342615421,1731995449708,-153.0,9.956e-05,2]
[342615422,1731995449717,-153.0,9.956e-05,2]
[342615423,1731995449726,-153.0,9.956e-05,2]
[342615424,1731995449735,-153.0,9.956e-05,2]
[342615425,1731995449745,-153.0,9.956e-05,2]
[342615426,1731995449755,-153.0,9.956e-05,2]
[342615427,1731995449765,-153.0,9.956e-05,2]
[342615428,1731995449774,-153.0,9.956e-05,2]
[342615429,1731995449783,-153.0,9.956e-05,2]
[342615430,1731995449792,-153.0,9.956e-05,2]
[342615431,1731995449802,-153.0,9.956e-05,2]
[342615432,1731995449811,-153.0,9.956e-05,2]
[342615433,1731995449820,-153.0,9.956e-05,2]
[342615434,1731995449829,-153.0,9.956e-05,2]
[342615435,1731995449838,-153.0,9.956e-05,2]
[342615436,1731995449848,-153.0,9.956e-05,2]
[342615437,1731995449862,-153.0,9.956e-05,2]
[342615438,1731995449871,-153.0,9.956e-05,2]
[342615439,1731995449880,-153.0,9.956e-05,2]
[342615440,1731995449889,-153.0,9.956e-05,2]
[342615441,1731995449900,-153.0,9.956e-05,2]
[342615442,1731995449909,-153.0,9.956e-05,2]
[342615443,1731995449919,-153.0,9.956e-05,2]
[342615444,1731995449928,-153.0,9.956e-05,2]
[342615445,1731995449937,-153.0,9.956e-05,2]
[342615446,1731995449946,-153.0,9.956e-05,2]
[342615447,1731995449955,-153.0,9.956e-05,2]
[342615448,1731995449965,-153.0,9.956e-05,2]
[342615449,1731995449973,-153.0,9.956e-05,2]
[342615450,1731995449983,-153.0,9.956e-05,2]
[342615451,1731995449992,-153.0,9.956e-05,2]
[342615452,1731995450001,-153.0,9.956e-05,2]
[342615453,1731995450010,-153.0,9.956e-05,2]
[342615454,1731995450020,-153.0,9.956e-05,2]
[342615455,1731995450029,-153.0,9.956e-05,2]
[342615456,1731995450038,-153.0,9.956e-05,2]
[342615457,1731995450048,-153.0,9.956e-05,2]
[342615458,1731995450057,-153.0,9.956e-05,2]
[342615459,1731995450067,-153.0,9.956e-05,2]
[342615460,1731995450077,-153.0,9.956e-05,2]
[342615461,1731995450086,-153.0,9.956e-05,2]
[342615462,1731995450095,-153.0,9.956e-05,2]
[342615463,1731995450105,-153.0,9.956e-05,2]
[342615464,1731995450115,-153.0,9.956e-05,2]
[342615465,1731995450125,-153.0,9.956e-05,2]
[342615466,1731995450134,-153.0,9.956e-05,2]
[342615467,1731995450143,-150.0,9.968e-05,2]
[342615468,1731995450154,-172.923,9.983e-05,2]
[342615469,1731995450163,-1481.7444762,9.988e-05,2]
[342615470,1731995450173,-632.4539033,9.988e-05,2]
[342615471,1731995450182,-2998.5696874,9.988e-05,2]
[342615472,1731995450191,-15818.67469039,9.99e-05,2]
[342615473,1731995450200,-165.82047437,9.99e-05,2]
[342615474,1731995450209,-165.82047432,9.99e-05,2]
[342615475,1731995450218,-165.82047432,9.99e-05,2]
[342615476,1731995450227,-165.82047432,9.99e-05,2]
[342615477,1731995450237,-165.82047432,9.99e-05,2]
[342615478,1731995450246,-1433.7055632,9.993e-05,2]
[342615479,1731995450255,-1385.6666502,9.993e-05,2]
[342615480,1731995450266,-1337.6277372,9.993e-05,2]
[342615481,1731995450275,-611.9494246,9.993e-05,2]
[342615482,1731995450284,-591.4449459,9.993e-05,2]
[342615483,1731995450293,-570.9404673,9.993e-05,2]
[342615484,1731995450303,-1399.41,9.993e-05,2]
[342615485,1731995450312,-1359.65,9.993e-05,2]
[342615486,1731995450321,-2902.5713203,9.993e-05,2]
[342615487,1731995450330,-2806.5729531,9.993e-05,2]
[342615488,1731995450339,-2710.5745859,9.993e-05,2]
[342615489,1731995450348,-223.76,9.994e-05,2]
[342615490,1731995450357,-743.95,9.994e-05,2]
[342615491,1731995450366,-674.25,9.994e-05,2]
[342615492,1731995450375,-881.82,9.994e-05,2]
[342615493,1731995450385,-500.0,9.994e-05,2]
[342615494,1731995450394,-558.11,9.994e-05,2]
[342615495,1731995450403,-875.8,9.994e-05,2]
[342615496,1731995450412,-500.0,9.994e-05,2]
[342615497,1731995450421,-1611.12,9.994e-05,2]
[342615498,1731995450430,-1194.11,9.994e-05,2]
[342615499,1731995450439,-1521.69,9.994e-05,2]
[342615500,1731995450448,-1505.76,9.994e-05,2]
[342615501,1731995450456,-943.83,9.994e-05,2]
[342615502,1731995450465,-1307.66,9.994e-05,2]
[342615503,1731995450474,-500.0,9.994e-05,2]
[342615504,1731995450484,-982.39,9.994e-05,2]
[342615505,1731995450493,-500.0,9.994e-05,2]
[342615506,1731995450502,-500.0,9.994e-05,2]
[342615507,1731995450512,-1587.39,9.994e-05,2]
[342615508,1731995450523,-500.0,9.994e-05,2]
[342615509,1731995450531,-500.0,9.994e-05,2]
[342615510,1731995450541,-1855.5,9.994e-05,2]
[342615511,1731995450550,-500.0,9.994e-05,2]
[342615512,1731995450559,-1134.18,9.994e-05,2]
[342615513,1731995450568,-155.78416184,9.994e-05,2]
[342615514,1731995450577,-500.0,9.994e-05,2]
[342615515,1731995450585,-500.0,9.994e-05,2]
[342615516,1731995450594,-1723.34,9.994e-05,2]
[342615517,1731995450603,-500.0,9.994e-05,2]
[342615518,1731995450612,-500.0,9.994e-05,2]
[342615519,1731995450621,-261.93,9.994e-05,2]
[342615520,1731995450630,-500.0,9.994e-05,2]
[342615521,1731995450638,-1685.74,9.994e-05,2]
[342615522,1731995450647,-500.0,9.994e-05,2]
[342615523,1731995450656,-500.0,9.994e-05,2]
[342615524,1731995450665,-500.0,9.994e-05,2]
[342615525,1731995450674,-500.0,9.994e-05,2]
[342615526,1731995450683,-590.4,9.994e-05,2]
[342615527,1731995450692,-500.0,9.994e-05,2]
[342615528,1731995450701,-500.0,9.994e-05,2]
[342615529,1731995450710,-200.98290878,9.994e-05,2]
[342615530,1731995450719,-500.0,9.995e-05,2]
[342615531,1731995450728,-1914.27,9.996e-05,2]
[342615532,1731995450737,-1307.77,9.996e-05,2]
[342615533,1731995450747,-224.40744954,9.996e-05,2]
[342615534,1731995450756,-500.0,9.996e-05,2]
[342615535,1731995450764,-1213.26,9.996e-05,2]
[342615536,1731995450774,-527.57,9.996e-05,2]
[342615537,1731995450783,-500.0,9.996e-05,2]
[342615538,1731995450793,-500.0,9.996e-05,2]
[342615539,1731995450802,-500.0,9.996e-05,2]
[342615540,1731995450811,-500.0,9.996e-05,2]
[342615541,1731995450820,-150.0,9.996e-05,2]
[342615542,1731995450829,-500.0,9.996e-05,2]
[342615543,1731995450838,-648.56114925,9.996e-05,2]
[342615544,1731995450849,-500.0,9.996e-05,2]
[342615545,1731995450862,-500.0,9.996e-05,2]
[342615546,1731995450871,-500.0,9.996e-05,2]
[342615547,1731995450879,-500.0,9.996e-05,2]
[342615548,1731995450888,-500.0,9.996e-05,2]
[342615549,1731995450899,-500.0,9.996e-05,2]
[342615550,1731995450909,-500.0,9.996e-05,2]
[342615551,1731995450918,-401.62,9.996e-05,2]
[342615552,1731995450928,-500.0,9.996e-05,2]
[342615553,1731995450938,-500.0,9.996e-05,2]
[342615554,1731995450948,-500.0,9.996e-05,2]
[342615555,1731995450957,-2160.75,9.996e-05,2]
[342615556,1731995450967,-1972.89,9.996e-05,2]
[342615557,1731995450977,-2089.91,9.996e-05,2]
[342615558,1731995450988,-500.0,9.996e-05,2]
[342615559,1731995450997,-500.0,9.996e-05,2]
[342615560,1731995451006,-500.0,9.996e-05,2]
[342615561,1731995451016,-500.0,9.996e-05,2]
[342615562,1731995451025,-1531.43,9.996e-05,2]
[342615563,1731995451034,-500.0,9.996e-05,2]
[342615564,1731995451044,-1849.76,9.996e-05,2]
[342615565,1731995451054,-500.0,9.996e-05,2]
[342615566,1731995451063,-500.0,9.996e-05,2]
[342615567,1731995451072,-368.74,9.996e-05,2]
[342615568,1731995451082,-500.0,9.996e-05,2]
[342615569,1731995451091,-500.0,9.996e-05,2]
[342615570,1731995451099,-500.0,9.996e-05,2]
[342615571,1731995451108,-500.0,9.996e-05,2]
[342615572,1731995451117,-500.0,9.996e-05,2]
[342615573,1731995451126,-310.26,9.996e-05,2]
[342615574,1731995451135,-743.95,9.997e-05,2]
[342615575,1731995451144,-674.25,9.997e-05,2]
[342615576,1731995451154,-881.82,9.997e-05,2]
[342615577,1731995451163,-319.67,9.997e-05,2]
[342615578,1731995451172,-558.11,9.997e-05,2]
[342615579,1731995451181,-875.8,9.997e-05,2]
[342615580,1731995451191,-649.47245572,9.997e-05,2]
[342615581,1731995451201,-1611.12,9.997e-05,2]
[342615582,1731995451210,-1194.11,9.997e-05,2]
[342615583,1731995451219,-1521.69,9.997e-05,2]
[342615584,1731995451229,-1505.76,9.997e-05,2]
[342615585,1731995451238,-943.83,9.997e-05,2]
[342615586,1731995451248,-1307.66,9.997e-05,2]
[342615587,1731995451257,-3491.43758359,9.997e-05,2]
[342615588,1731995451268,-500.0,9.997e-05,2]
[342615589,1731995451277,-982.39,9.997e-05,2]
[342615590,1731995451286,-321.48648146,9.997e-05,2]
[342615591,1731995451298,-588.57790615,9.997e-05,2]
[342615592,1731995451307,-1587.39,9.997e-05,2]
[342615593,1731995451316,-500.0,9.997e-05,2]
[342615594,1731995451325,-500.0,9.997e-05,2]
[342615595,1731995451334,-1855.5,9.997e-05,2]
[342615596,1731995451343,-1134.18,9.997e-05,2]
[342615597,1731995451352,-634.48290811,9.997e-05,2]
[342615598,1731995451362,-500.0,9.997e-05,2]
[342615599,1731995451371,-1723.34,9.997e-05,2]
[342615600,1731995451380,-500.0,9.997e-05,2]
[342615601,1731995451389,-500.0,9.997e-05,2]
[342615602,1731995451398,-500.0,9.997e-05,2]
[342615603,1731995451407,-1685.74,9.997e-05,2]
[342615604,1731995451416,-500.0,9.997e-05,2]
[342615605,1731995451425,-500.0,9.997e-05,2]
[342615606,1731995451434,-500.0,9.997e-05,2]
[342615607,1731995451443,-1581.74,9.997e-05,2]
[342615608,1731995451451,-439.95,9.997e-05,2]
[342615609,1731995451460,-590.4,9.997e-05,2]
[342615610,1731995451469,-336.19,9.997e-05,2]
[342615611,1731995451478,-500.0,9.997e-05,2]
[342615612,1731995451487,-500.0,9.997e-05,2]
[342615613,1731995451496,-500.0,9.997e-05,2]
[342615614,1731995451505,-1331.11,9.997e-05,2]
[342615615,1731995451514,-500.0,9.997e-05,2]
[342615616,1731995451525,-500.0,9.997e-05,2]
[342615617,1731995451534,-1152.13,9.997e-05,2]
[342615618,1731995451543,-1626.78,9.997e-05,2]
[342615619,1731995451552,-621.59,9.997e-05,2]
[342615620,1731995451560,-1399.41,9.997e-05,2]
[342615621,1731995451569,-1492.85,9.997e-05,2]
[342615622,1731995451578,-1359.65,9.997e-05,2]
[342615623,1731995451587,-743.95,9.998e-05,2]
[342615624,1731995451596,-743.95,9.998e-05,2]
[342615625,1731995451606,-500.0,9.998e-05,2]
[342615626,1731995451617,-674.25,9.998e-05,2]
[342615627,1731995451626,-674.25,9.998e-05,2]
[342615628,1731995451636,-881.82,9.998e-05,2]
[342615629,1731995451646,-881.82,9.998e-05,2]
[342615630,1731995451657,-558.11,9.998e-05,2]
[342615631,1731995451667,-558.11,9.998e-05,2]
[342615632,1731995451677,-875.8,9.998e-05,2]
[342615633,1731995451689,-875.8,9.998e-05,2]
[342615634,1731995451698,-1611.12,9.998e-05,2]
[342615635,1731995451708,-1611.12,9.998e-05,2]
[342615636,1731995451720,-1194.11,9.998e-05,2]
[342615637,1731995451729,-1194.11,9.998e-05,2]
[342615638,1731995451738,-500.0,9.998e-05,2]
[342615639,1731995451747,-1307.77,9.998e-05,2]
[342615640,1731995451756,-1521.69,9.998e-05,2]
[342615641,1731995451765,-1521.69,9.998e-05,2]
[342615642,1731995451777,-252.08712574,9.998e-05,2]
[342615643,1731995451786,-500.0,9.998e-05,2]
[342615644,1731995451796,-1213.26,9.998e-05,2]
[342615645,1731995451806,-1505.76,9.998e-05,2]
[342615646,1731995451815,-1505.76,9.998e-05,2]
[342615647,1731995451824,-527.57,9.998e-05,2]
[342615648,1731995451833,-943.83,9.998e-05,2]
[342615649,1731995451842,-943.83,9.998e-05,2]
[342615650,1731995451854,-500.0,9.998e-05,2]
[342615651,1731995451864,-1307.66,9.998e-05,2]
[342615652,1731995451873,-1307.66,9.998e-05,2]
[342615653,1731995451882,-500.0,9.998e-05,2]
[342615654,1731995451892,-500.0,9.998e-05,2]
[342615655,1731995451902,-500.0,9.998e-05,2]
[342615656,1731995451911,-321.74,9.998e-05,2]
[342615657,1731995451920,-500.0,9.998e-05,2]
[342615658,1731995451932,-982.39,9.998e-05,2]
[342615659,1731995451941,-982.39,9.998e-05,2]
[342615660,1731995451950,-499.82385897,9.998e-05,2]
[342615661,1731995451959,-327.36519157,9.998e-05,2]
[342615662,1731995451970,-500.0,9.998e-05,2]
[342615663,1731995451980,-500.0,9.998e-05,2]
[342615664,1731995451989,-500.0,9.998e-05,2]
[342615665,1731995451998,-150.0,9.998e-05,2]
[342615666,1731995452008,-500.0,9.998e-05,2]
[342615667,1731995452018,-500.0,9.998e-05,2]
[342615668,1731995452028,-500.0,9.998e-05,2]
[342615669,1731995452041,-500.0,9.998e-05,2]
[342615670,1731995452051,-500.0,9.998e-05,2]
[342615671,1731995452060,-500.0,9.998e-05,2]
[342615672,1731995452071,-500.0,9.998e-05,2]
[342615673,1731995452080,-1587.39,9.998e-05,2]
[342615674,1731995452089,-1587.39,9.998e-05,2]
[342615675,1731995452099,-500.0,9.998e-05,2]
[342615676,1731995452110,-500.0,9.998e-05,2]
[342615677,1731995452119,-500.0,9.998e-05,2]
[342615678,1731995452128,-500.0,9.998e-05,2]
[342615679,1731995452138,-500.0,9.998e-05,2]
[342615680,1731995452147,-500.0,9.998e-05,2]
[342615681,1731995452157,-500.0,9.998e-05,2]
[342615682,1731995452166,-502.96669828,9.998e-05,2]
[342615683,1731995452175,-500.0,9.998e-05,2]
[342615684,1731995452185,-500.0,9.998e-05,2]
[342615685,1731995452195,-1855.5,9.998e-05,2]
[342615686,1731995452204,-1855.5,9.998e-05,2]
[342615687,1731995452214,-500.0,9.998e-05,2]
[342615688,1731995452223,-1134.18,9.998e-05,2]
[342615689,1731995452232,-1134.18,9.998e-05,2]
[342615690,1731995452242,-500.0,9.998e-05,2]
[342615691,1731995452251,-500.0,9.998e-05,2]
[342615692,1731995452261,-500.0,9.998e-05,2]
[342615693,1731995452271,-500.0,9.998e-05,2]
[342615694,1731995452280,-1653.13,9.998e-05,2]
[342615695,1731995452290,-1653.13,9.998e-05,2]
[342615696,1731995452299,-1653.13,9.998e-05,2]
[342615697,1731995452309,-1653.13,9.998e-05,2]
[342615698,1731995452319,-1402.49,9.998e-05,2]
[342615699,1731995452328,-1402.49,9.998e-05,2]
[342615700,1731995452337,-1402.49,9.998e-05,2]
[342615701,1731995452347,-1402.49,9.998e-05,2]
[342615702,1731995452356,-500.0,9.998e-05,2]
[342615703,1731995452365,-500.0,9.998e-05,2]
[342615704,1731995452374,-548.96643054,9.998e-05,2]
[342615705,1731995452383,-500.0,9.998e-05,2]
[342615706,1731995452392,-500.0,9.998e-05,2]
[342615707,1731995452401,-500.0,9.998e-05,2]
[342615708,1731995452410,-500.0,9.998e-05,2]
[342615709,1731995452419,-500.0,9.998e-05,2]
[342615710,1731995452428,-500.0,9.998e-05,2]
[342615711,1731995452437,-500.0,9.998e-05,2]
[342615712,1731995452446,-500.0,9.998e-05,2]
[342615713,1731995452456,-500.0,9.998e-05,2]
[342615714,1731995452467,-242.68,9.998e-05,2]
[342615715,1731995452476,-500.0,9.998e-05,2]
[342615716,1731995452487,-500.0,9.998e-05,2]
[342615717,1731995452497,-479.12,9.998e-05,2]
[342615718,1731995452507,-561.76,9.998e-05,2]
[342615719,1731995452516,-500.0,9.998e-05,2]
[342615720,1731995452526,-500.0,9.998e-05,2]
[342615721,1731995452535,-498.67129488,9.998e-05,2]
[342615722,1731995452544,-222.97,9.998e-05,2]
[342615723,1731995452553,-173.55245426,9.998e-05,2]
[342615724,1731995452562,-500.0,9.998e-05,2]
[342615725,1731995452571,-358.06,9.998e-05,2]
[342615726,1731995452580,-500.0,9.998e-05,2]
[342615727,1731995452687,-1420.52,9.998e-05,2]
[342615728,1731995452696,-1420.52,9.998e-05,2]
[342615729,1731995452705,-1420.52,9.998e-05,2]
[342615730,1731995452715,-1420.52,9.998e-05,2]
[342615731,1731995452724,-500.0,9.998e-05,2]
[342615732,1731995452733,-500.0,9.998e-05,2]
[342615733,1731995452743,-500.0,9.998e-05,2]
[342615734,1731995452751,-500.0,9.998e-05,2]
[342615735,1731995452760,-500.0,9.998e-05,2]
[342615736,1731995452770,-253.18,9.998e-05,2]
[342615737,1731995452780,-500.0,9.998e-05,2]
[342615738,1731995452789,-500.0,9.998e-05,2]
[342615739,1731995452798,-1723.34,9.998e-05,2]
[342615740,1731995452807,-1723.34,9.998e-05,2]
[342615741,1731995452816,-500.0,9.998e-05,2]
[342615742,1731995452825,-465.44,9.998e-05,2]
[342615743,1731995452834,-1148.26,9.998e-05,2]
[342615744,1731995452843,-1148.26,9.998e-05,2]
[342615745,1731995452855,-1148.26,9.998e-05,2]
[342615746,1731995452864,-1148.26,9.998e-05,2]
[342615747,1731995452873,-2160.75,9.998e-05,2]
[342615748,1731995452883,-500.0,9.998e-05,2]
[342615749,1731995452892,-340.85,9.998e-05,2]
[342615750,1731995452903,-595.23,9.998e-05,2]
[342615751,1731995452912,-500.0,9.998e-05,2]
[342615752,1731995452922,-500.0,9.998e-05,2]
[342615753,1731995452933,-500.0,9.998e-05,2]
[342615754,1731995452942,-500.0,9.998e-05,2]
[342615755,1731995452951,-495.26815091,9.998e-05,2]
[342615756,1731995452961,-500.0,9.998e-05,2]
[342615757,1731995452970,-500.96,9.998e-05,2]
[342615758,1731995452979,-500.0,9.998e-05,2]
[342615759,1731995452989,-500.0,9.998e-05,2]
[342615760,1731995452999,-443.36012639,9.998e-05,2]
[342615761,1731995453009,-1589.95,9.998e-05,2]
[342615762,1731995453019,-1589.95,9.998e-05,2]
[342615763,1731995453028,-1589.95,9.998e-05,2]
[342615764,1731995453038,-1589.95,9.998e-05,2]
[342615765,1731995453048,-1972.89,9.998e-05,2]
[342615766,1731995453057,-500.0,9.998e-05,2]
[342615767,1731995453066,-155.33007477,9.998e-05,2]
[342615768,1731995453075,-1436.68,9.998e-05,2]
[342615769,1731995453085,-1436.68,9.998e-05,2]
[342615770,1731995453095,-2089.91,9.998e-05,2]
[342615771,1731995453104,-1436.68,9.998e-05,2]
[342615772,1731995453114,-1436.68,9.998e-05,2]
[342615773,1731995453123,-261.18,9.998e-05,2]
[342615774,1731995453132,-1590.21,9.998e-05,2]
[342615775,1731995453142,-1744.27,9.998e-05,2]
[342615776,1731995453151,-500.0,9.998e-05,2]
[342615777,1731995453160,-500.0,9.998e-05,2]
[342615778,1731995453169,-500.0,9.998e-05,2]
[342615779,1731995453178,-500.0,9.998e-05,2]
[342615780,1731995453187,-1730.84,9.998e-05,2]
[342615781,1731995453197,-1730.84,9.998e-05,2]
[342615782,1731995453207,-1730.84,9.998e-05,2]
[342615783,1731995453217,-1730.84,9.998e-05,2]
[342615784,1731995453226,-500.0,9.998e-05,2]
[342615785,1731995453235,-500.0,9.998e-05,2]
[342615786,1731995453245,-1685.74,9.998e-05,2]
[342615787,1731995453254,-1685.74,9.998e-05,2]
[342615788,1731995453264,-1406.43,9.998e-05,2]
[342615789,1731995453274,-1200.71,9.998e-05,2]
[342615790,1731995453283,-1200.71,9.998e-05,2]
[342615791,1731995453293,-1200.71,9.998e-05,2]
[342615792,1731995453302,-1200.71,9.998e-05,2]
[342615793,1731995453311,-1531.43,9.998e-05,2]
[342615794,1731995453320,-500.0,9.998e-05,2]